[Event "Titled Tuesday Blitz December 20 Late 2022"]
[White "Itkis, Boris"]
[Black "Zhukov, Maksim"]
[WhiteFideId "1209167"]
[BlackFideId "34181790"]
[WhiteElo "2216"]
[BlackElo "1929"]
[Result "1-0"]
[Round "05"]
[TimeControl "180+1"]
[Date "2022.12.21"]
[WhiteClock "0:00:18"]
[BlackClock "0:00:31"]

1. c4 {[%clk 0:03:00]}  g6 {[%clk 0:02:59]} 2. Nf3 {[%clk 0:02:58]}  Bg7 {[%clk 0:03:00]} 3. d4 {[%clk 0:02:58]}  Nf6 {[%clk 0:03:00]} 4. g3 {[%clk 0:02:58]}  O-O {[%clk 0:03:00]} 5. Bg2 {[%clk 0:02:59]}  d6 {[%clk 0:03:01]} 6. O-O {[%clk 0:02:57]}  Nc6 {[%clk 0:03:02]} 7. d5 {[%clk 0:02:58]}  Na5 {[%clk 0:03:01]} 8. Na3 {[%clk 0:02:58]}  c5 {[%clk 0:03:02]} 9. Re1 {[%clk 0:02:56]}  Bf5 {[%clk 0:03:00]} 10. Nh4 {[%clk 0:02:51]}  Bg4 {[%clk 0:02:53]} 11. h3 {[%clk 0:02:49]}  Bd7 {[%clk 0:02:51]} 12. e4 {[%clk 0:02:41]}  e6 {[%clk 0:02:51]} 13. Bd2 {[%clk 0:02:34]}  exd5 {[%clk 0:02:50]} 14. exd5 {[%clk 0:02:32]}  Rb8 {[%clk 0:02:45]} 15. Bc3 {[%clk 0:02:30]}  b6 {[%clk 0:02:40]} 16. Qd2 {[%clk 0:02:17]}  Nb7 {[%clk 0:02:39]} 17. Re2 {[%clk 0:02:08]}  a6 {[%clk 0:02:39]} 18. b3 {[%clk 0:01:50]}  b5 {[%clk 0:02:39]} 19. Bb2 {[%clk 0:01:50]}  Na5 {[%clk 0:02:26]} 20. cxb5 {[%clk 0:01:41]}  axb5 {[%clk 0:02:24]} 21. b4 {[%clk 0:01:41]}  Nc4 {[%clk 0:02:21]} 22. Nxc4 {[%clk 0:01:38]}  bxc4 {[%clk 0:02:22]} 23. bxc5 {[%clk 0:01:36]}  dxc5 {[%clk 0:02:22]} 24. Bc3 {[%clk 0:01:32]}  Ra8 {[%clk 0:02:10]} 25. Nf3 {[%clk 0:01:24]}  Bf5 {[%clk 0:02:08]} 26. Ne5 {[%clk 0:01:23]}  Ra4 {[%clk 0:01:54]} 27. Nc6 {[%clk 0:01:18]}  Qd7 {[%clk 0:01:39]} 28. d6 {[%clk 0:01:13]}  Bd3 {[%clk 0:01:38]} 29. Ne7+ {[%clk 0:01:12]}  Kh8 {[%clk 0:01:37]} 30. Bc6 {[%clk 0:01:11]}  Qxd6 {[%clk 0:01:37]} 31. Bxa4 {[%clk 0:01:09]}  Qa6 {[%clk 0:01:19]} 32. Bc2 {[%clk 0:00:40]}  Bxe2 {[%clk 0:01:19]} 33. Qxe2 {[%clk 0:00:41]}  Re8 {[%clk 0:01:18]} 34. Bxf6 {[%clk 0:00:35]}  Bxf6 {[%clk 0:01:15]} 35. Nxg6+ {[%clk 0:00:34]}  hxg6 {[%clk 0:01:12]} 36. Qxe8+ {[%clk 0:00:33]}  Kg7 {[%clk 0:01:13]} 37. Re1 {[%clk 0:00:32]}  Qxa2 {[%clk 0:01:13]} 38. Qe4 {[%clk 0:00:25]}  Bd4 {[%clk 0:01:09]} 39. Re2 {[%clk 0:00:24]}  Qa1+ {[%clk 0:01:09]} 40. Kg2 {[%clk 0:00:25]}  Qc1 {[%clk 0:01:09]} 41. h4 {[%clk 0:00:24]}  Qh6 {[%clk 0:01:06]} 42. Qf4 {[%clk 0:00:20]}  Qh5 {[%clk 0:01:04]} 43. Re7 {[%clk 0:00:19]}  Qd5+ {[%clk 0:00:59]} 44. Be4 {[%clk 0:00:17]}  Be5 {[%clk 0:00:21]} 45. Bxd5 {[%clk 0:00:15]}  Bxf4 {[%clk 0:00:21]} 46. Rxf7+ {[%clk 0:00:15]}  Kh6 {[%clk 0:00:21]} 47. Rxf4 {[%clk 0:00:14]}  c3 {[%clk 0:00:21]} 48. Rc4 {[%clk 0:00:14]}  g5 {[%clk 0:00:22]} 49. hxg5+ {[%clk 0:00:13]}  Kxg5 {[%clk 0:00:23]} 50. Rxc5 {[%clk 0:00:14]}  Kf6 {[%clk 0:00:23]} 51. Rxc3 {[%clk 0:00:15]}  Kg7 {[%clk 0:00:23]} 52. Bf3 {[%clk 0:00:16]}  Kh8 {[%clk 0:00:24]} 53. g4 {[%clk 0:00:16]}  Kg7 {[%clk 0:00:24]} 54. Rc5 {[%clk 0:00:17]}  Kh8 {[%clk 0:00:25]} 55. Kg3 {[%clk 0:00:18]}  Kg7 {[%clk 0:00:26]} 56. Bg2 {[%clk 0:00:19]}  Kh8 {[%clk 0:00:27]} 57. f4 {[%clk 0:00:20]}  Kg7 {[%clk 0:00:28]} 58. g5 {[%clk 0:00:21]}  Kh8 {[%clk 0:00:29]} 59. Kg4 {[%clk 0:00:22]}  Kg7 {[%clk 0:00:30]} 60. f5 {[%clk 0:00:23]}  Kh8 {[%clk 0:00:31]} 61. f6 {[%clk 0:00:22]}  Kg8 {[%clk 0:00:31]} 62. Bd5+ {[%clk 0:00:21]}  Kh7 {[%clk 0:00:32]} 63. Be4+ {[%clk 0:00:22]}  Kg8 {[%clk 0:00:32]} 64. Rc8+ {[%clk 0:00:22]}  Kf7 {[%clk 0:00:32]} 65. Bd5+ {[%clk 0:00:22]}  Kg6 {[%clk 0:00:31]} 66. f7 {[%clk 0:00:20]}  Kh7 {[%clk 0:00:31]} 67. Rh8+ {[%clk 0:00:17]}  Kxh8 {[%clk 0:00:30]} 68. f8=Q+ {[%clk 0:00:18]}  Kh7 {[%clk 0:00:31]} 69. Qh6# {[%clk 0:00:18]} 1-0


[Site "https://www.chess.com"]

[Event "Titled Tuesday Blitz December 20 Late 2022"]
[White "Jaracz, Pawel"]
[Black "Dubov, Daniil"]
[WhiteFideId "1102222"]
[BlackFideId "24126055"]
[WhiteElo "2460"]
[BlackElo "2792"]
[Result "1-0"]
[Round "05"]
[TimeControl "180+1"]
[Date "2022.12.20"]
[WhiteClock "0:01:13"]
[BlackClock "0:00:03"]

1. e4 {[%clk 0:03:00]}  g6 {[%clk 0:02:24]} 2. d4 {[%clk 0:03:00]}  d6 {[%clk 0:02:22]} 3. Nc3 {[%clk 0:03:00]}  Bg7 {[%clk 0:02:19]} 4. Be3 {[%clk 0:02:59]}  a6 {[%clk 0:02:14]} 5. g4 {[%clk 0:02:58]}  b5 {[%clk 0:02:11]} 6. Bg2 {[%clk 0:02:58]}  Bb7 {[%clk 0:02:04]} 7. h4 {[%clk 0:02:57]}  b4 {[%clk 0:02:01]} 8. Nce2 {[%clk 0:02:56]}  f6 {[%clk 0:01:52]} 9. Nf4 {[%clk 0:02:40]}  e5 {[%clk 0:01:48]} 10. Ne6 {[%clk 0:02:37]}  Qe7 {[%clk 0:01:46]} 11. Nxg7+ {[%clk 0:02:35]}  Qxg7 {[%clk 0:01:43]} 12. Qd2 {[%clk 0:02:34]}  Ne7 {[%clk 0:01:36]} 13. Qxb4 {[%clk 0:02:31]}  Bc8 {[%clk 0:01:25]} 14. Qc3 {[%clk 0:02:18]}  exd4 {[%clk 0:00:45]} 15. Bxd4 {[%clk 0:02:16]}  O-O {[%clk 0:00:40]} 16. g5 {[%clk 0:02:10]}  Qf7 {[%clk 0:00:06]} 17. Bxf6 {[%clk 0:01:58]}  Nbc6 {[%clk 0:00:04]} 18. Ne2 {[%clk 0:01:32]}  Be6 {[%clk 0:00:03]} 19. Nf4 {[%clk 0:01:27]}  Ne5 {[%clk 0:00:03]} 20. Qxc7 {[%clk 0:01:13]} 1-0


[Site "https://www.chess.com"]

[Event "Titled Tuesday Blitz December 20 Late 2022"]
[White "Kazakouski, Valery"]
[Black "Migot, Tangi"]
[WhiteFideId "13507443"]
[BlackFideId "662445"]
[WhiteElo "2516"]
[BlackElo "2564"]
[Result "1-0"]
[Round "05"]
[TimeControl "180+1"]
[Date "2022.12.21"]
[WhiteClock "0:00:54"]
[BlackClock "0:00:14"]

1. Nf3 {[%clk 0:02:08]}  g6 {[%clk 0:02:59]} 2. d4 {[%clk 0:02:06]}  Bg7 {[%clk 0:03:00]} 3. g3 {[%clk 0:02:06]}  d5 {[%clk 0:02:59]} 4. c4 {[%clk 0:02:04]}  c6 {[%clk 0:02:59]} 5. Nbd2 {[%clk 0:02:03]}  Nf6 {[%clk 0:02:55]} 6. Bg2 {[%clk 0:02:02]}  O-O {[%clk 0:02:56]} 7. O-O {[%clk 0:02:02]}  Bf5 {[%clk 0:02:55]} 8. b3 {[%clk 0:02:02]}  Ne4 {[%clk 0:02:54]} 9. Bb2 {[%clk 0:02:02]}  a5 {[%clk 0:02:47]} 10. a3 {[%clk 0:02:00]}  Nd7 {[%clk 0:02:37]} 11. h3 {[%clk 0:01:59]}  h6 {[%clk 0:02:33]} 12. g4 {[%clk 0:01:58]}  Nxd2 {[%clk 0:02:28]} 13. Nxd2 {[%clk 0:01:59]}  Be6 {[%clk 0:02:28]} 14. f4 {[%clk 0:01:51]}  Nf6 {[%clk 0:02:13]} 15. Qc2 {[%clk 0:01:43]}  dxc4 {[%clk 0:02:05]} 16. bxc4 {[%clk 0:01:42]}  c5 {[%clk 0:01:55]} 17. d5 {[%clk 0:01:40]}  Bc8 {[%clk 0:01:48]} 18. e4 {[%clk 0:01:40]}  Ne8 {[%clk 0:01:41]} 19. Bxg7 {[%clk 0:01:38]}  Nxg7 {[%clk 0:01:39]} 20. Nf3 {[%clk 0:01:38]}  e6 {[%clk 0:01:33]} 21. Rad1 {[%clk 0:01:34]}  exd5 {[%clk 0:01:33]} 22. cxd5 {[%clk 0:01:35]}  b6 {[%clk 0:01:20]} 23. Ne5 {[%clk 0:01:32]}  Ba6 {[%clk 0:01:15]} 24. Nc6 {[%clk 0:01:32]}  Qh4 {[%clk 0:01:10]} 25. Qf2 {[%clk 0:01:22]}  Qxf2+ {[%clk 0:01:02]} 26. Rxf2 {[%clk 0:01:23]}  Bb5 {[%clk 0:00:50]} 27. Ne7+ {[%clk 0:01:19]}  Kh7 {[%clk 0:00:49]} 28. Rb1 {[%clk 0:01:19]}  Bd3 {[%clk 0:00:44]} 29. Rxb6 {[%clk 0:01:19]}  Rfe8 {[%clk 0:00:45]} 30. d6 {[%clk 0:01:19]}  Rad8 {[%clk 0:00:44]} 31. e5 {[%clk 0:01:18]}  c4 {[%clk 0:00:37]} 32. Rc6 {[%clk 0:01:14]}  Ne6 {[%clk 0:00:33]} 33. Bd5 {[%clk 0:01:13]}  Nd4 {[%clk 0:00:31]} 34. Rc7 {[%clk 0:01:10]}  Rf8 {[%clk 0:00:24]} 35. Bxc4 {[%clk 0:01:08]}  Bxc4 {[%clk 0:00:20]} 36. Rxc4 {[%clk 0:01:08]}  Nb5 {[%clk 0:00:18]} 37. a4 {[%clk 0:01:07]}  Nxd6 {[%clk 0:00:17]} 38. exd6 {[%clk 0:01:08]}  Rxd6 {[%clk 0:00:17]} 39. f5 {[%clk 0:01:07]}  g5 {[%clk 0:00:17]} 40. Nc6 {[%clk 0:01:05]}  Rc8 {[%clk 0:00:17]} 41. Ne5 {[%clk 0:01:03]}  Rxc4 {[%clk 0:00:16]} 42. Nxc4 {[%clk 0:01:04]}  Rd4 {[%clk 0:00:17]} 43. Nxa5 {[%clk 0:01:05]}  Rxa4 {[%clk 0:00:17]} 44. Nc6 {[%clk 0:01:05]}  Ra3 {[%clk 0:00:18]} 45. Kg2 {[%clk 0:01:05]}  h5 {[%clk 0:00:19]} 46. Ne5 {[%clk 0:01:04]}  hxg4 {[%clk 0:00:19]} 47. hxg4 {[%clk 0:01:04]}  Ra4 {[%clk 0:00:19]} 48. Kg3 {[%clk 0:01:02]}  Ra3+ {[%clk 0:00:19]} 49. Rf3 {[%clk 0:01:03]}  Ra7 {[%clk 0:00:19]} 50. Rd3 {[%clk 0:01:03]}  Kg7 {[%clk 0:00:18]} 51. Rd7 {[%clk 0:01:03]}  Ra3+ {[%clk 0:00:19]} 52. Kf2 {[%clk 0:01:03]}  Kf6 {[%clk 0:00:19]} 53. Nxf7 {[%clk 0:01:01]}  Ra2+ {[%clk 0:00:19]} 54. Ke1 {[%clk 0:01:00]}  Ra3 {[%clk 0:00:20]} 55. Nh6 {[%clk 0:00:56]}  Rh3 {[%clk 0:00:20]} 56. Rd6+ {[%clk 0:00:56]}  Ke5 {[%clk 0:00:19]} 57. Rg6 {[%clk 0:00:56]}  Kf4 {[%clk 0:00:20]} 58. f6 {[%clk 0:00:56]}  Rf3 {[%clk 0:00:15]} 59. f7 {[%clk 0:00:55]}  Kg3 {[%clk 0:00:14]} 60. Nf5+ {[%clk 0:00:54]} 1-0


[Site "https://www.chess.com"]

[Event "Titled Tuesday Blitz December 20 Late 2022"]
[White "Keymer, Vincent"]
[Black "Mikhalsky, Vladimir"]
[WhiteFideId "12940690"]
[BlackFideId "14144352"]
[WhiteElo "2600"]
[BlackElo "2272"]
[Result "1-0"]
[Round "05"]
[TimeControl "180+1"]
[Date "2022.12.21"]
[WhiteClock "0:00:21"]
[BlackClock "0:00:01"]

1. a3 {[%clk 0:03:00]}  e5 {[%clk 0:02:58]} 2. c4 {[%clk 0:03:00]}  Nf6 {[%clk 0:02:57]} 3. d3 {[%clk 0:03:00]}  Nc6 {[%clk 0:02:52]} 4. Nf3 {[%clk 0:02:59]}  g6 {[%clk 0:02:44]} 5. g3 {[%clk 0:02:55]}  Bg7 {[%clk 0:02:44]} 6. Bg2 {[%clk 0:02:55]}  O-O {[%clk 0:02:44]} 7. O-O {[%clk 0:02:41]}  e4 {[%clk 0:02:42]} 8. dxe4 {[%clk 0:02:26]}  Nxe4 {[%clk 0:02:42]} 9. Ra2 {[%clk 0:01:53]}  d6 {[%clk 0:02:38]} 10. b3 {[%clk 0:01:52]}  Re8 {[%clk 0:02:25]} 11. Bb2 {[%clk 0:01:52]}  Bxb2 {[%clk 0:02:25]} 12. Rxb2 {[%clk 0:01:53]}  Qf6 {[%clk 0:02:24]} 13. Ra2 {[%clk 0:01:38]}  a5 {[%clk 0:02:13]} 14. Nfd2 {[%clk 0:01:37]}  Nc5 {[%clk 0:02:01]} 15. e3 {[%clk 0:01:29]}  Bf5 {[%clk 0:01:55]} 16. Qc1 {[%clk 0:01:21]}  a4 {[%clk 0:01:32]} 17. b4 {[%clk 0:01:17]}  Nd3 {[%clk 0:01:05]} 18. Qc3 {[%clk 0:01:15]}  Kg7 {[%clk 0:01:01]} 19. Qxf6+ {[%clk 0:01:11]}  Kxf6 {[%clk 0:01:01]} 20. Nc3 {[%clk 0:01:12]}  Nde5 {[%clk 0:00:54]} 21. Rd1 {[%clk 0:01:09]}  Kg7 {[%clk 0:00:51]} 22. h3 {[%clk 0:01:05]}  Bd3 {[%clk 0:00:49]} 23. Nd5 {[%clk 0:00:54]}  Rac8 {[%clk 0:00:41]} 24. Rc1 {[%clk 0:00:54]}  Bf5 {[%clk 0:00:35]} 25. f4 {[%clk 0:00:42]}  Nd7 {[%clk 0:00:32]} 26. Kf2 {[%clk 0:00:41]}  Nf6 {[%clk 0:00:30]} 27. g4 {[%clk 0:00:37]}  Ne4+ {[%clk 0:00:25]} 28. Ke2 {[%clk 0:00:27]}  Nxd2 {[%clk 0:00:24]} 29. Rxd2 {[%clk 0:00:28]}  Be4 {[%clk 0:00:23]} 30. Bxe4 {[%clk 0:00:27]}  Rxe4 {[%clk 0:00:23]} 31. Kf3 {[%clk 0:00:28]}  Ree8 {[%clk 0:00:21]} 32. e4 {[%clk 0:00:27]}  Ne7 {[%clk 0:00:20]} 33. Ne3 {[%clk 0:00:25]}  Nc6 {[%clk 0:00:18]} 34. Nd5 {[%clk 0:00:23]}  Ne7 {[%clk 0:00:18]} 35. Nc3 {[%clk 0:00:24]}  Ra8 {[%clk 0:00:17]} 36. Nb5 {[%clk 0:00:24]}  Rac8 {[%clk 0:00:16]} 37. c5 {[%clk 0:00:24]}  dxc5 {[%clk 0:00:15]} 38. Rxc5 {[%clk 0:00:25]}  Nc6 {[%clk 0:00:15]} 39. Nc3 {[%clk 0:00:20]}  Red8 {[%clk 0:00:15]} 40. Rcd5 {[%clk 0:00:20]}  Rxd5 {[%clk 0:00:13]} 41. Rxd5 {[%clk 0:00:21]}  Ra8 {[%clk 0:00:10]} 42. e5 {[%clk 0:00:22]}  Kf8 {[%clk 0:00:03]} 43. Rd7 {[%clk 0:00:21]}  Ke8 {[%clk 0:00:02]} 44. Rxc7 {[%clk 0:00:21]}  Rd8 {[%clk 0:00:01]} 45. Ke3 {[%clk 0:00:21]} 1-0


[Site "https://www.chess.com"]

[Event "Titled Tuesday Blitz December 20 Late 2022"]
[White "Kleiman, Jake"]
[Black "Kim, Sergey"]
[WhiteFideId "2020041"]
[BlackFideId "13700570"]
[WhiteElo "2646"]
[BlackElo "2499"]
[Result "1-0"]
[Round "05"]
[TimeControl "180+1"]
[Date "2022.12.21"]
[WhiteClock "0:00:29"]
[BlackClock "0:00:14"]

1. Nf3 {[%clk 0:03:00]}  Nf6 {[%clk 0:02:59]} 2. g3 {[%clk 0:03:01]}  g6 {[%clk 0:02:59]} 3. Bg2 {[%clk 0:03:02]}  Bg7 {[%clk 0:03:00]} 4. O-O {[%clk 0:03:03]}  d6 {[%clk 0:03:00]} 5. d3 {[%clk 0:03:04]}  O-O {[%clk 0:03:00]} 6. e4 {[%clk 0:03:05]}  e5 {[%clk 0:03:00]} 7. a4 {[%clk 0:03:04]}  a5 {[%clk 0:02:59]} 8. Nbd2 {[%clk 0:03:05]}  c6 {[%clk 0:02:58]} 9. Nc4 {[%clk 0:03:05]}  Qc7 {[%clk 0:02:54]} 10. b3 {[%clk 0:02:58]}  Re8 {[%clk 0:02:51]} 11. Ba3 {[%clk 0:02:58]}  Bf8 {[%clk 0:02:50]} 12. Re1 {[%clk 0:02:58]}  Na6 {[%clk 0:02:43]} 13. d4 {[%clk 0:02:55]}  b6 {[%clk 0:02:32]} 14. dxe5 {[%clk 0:02:53]}  dxe5 {[%clk 0:02:32]} 15. Bxf8 {[%clk 0:02:54]}  Kxf8 {[%clk 0:02:32]} 16. Qd6+ {[%clk 0:02:23]}  Qxd6 {[%clk 0:02:28]} 17. Nxd6 {[%clk 0:02:24]}  Re7 {[%clk 0:02:15]} 18. Nc4 {[%clk 0:02:21]}  Nd7 {[%clk 0:02:09]} 19. Bh3 {[%clk 0:02:15]}  Nac5 {[%clk 0:02:07]} 20. Rad1 {[%clk 0:02:14]}  Rb8 {[%clk 0:02:01]} 21. Rd6 {[%clk 0:01:18]}  Ba6 {[%clk 0:01:54]} 22. Nfd2 {[%clk 0:01:08]}  Bb7 {[%clk 0:01:42]} 23. f3 {[%clk 0:01:02]}  Kg7 {[%clk 0:01:36]} 24. Kf2 {[%clk 0:01:02]}  f6 {[%clk 0:01:28]} 25. Rd1 {[%clk 0:01:02]}  h6 {[%clk 0:01:20]} 26. Nf1 {[%clk 0:01:00]}  f5 {[%clk 0:01:00]} 27. exf5 {[%clk 0:00:58]}  Nf6 {[%clk 0:01:00]} 28. fxg6 {[%clk 0:00:54]}  e4 {[%clk 0:01:01]} 29. Bf5 {[%clk 0:00:48]}  exf3 {[%clk 0:00:58]} 30. Kxf3 {[%clk 0:00:49]}  Bc8 {[%clk 0:00:47]} 31. g4 {[%clk 0:00:43]}  h5 {[%clk 0:00:43]} 32. h3 {[%clk 0:00:42]}  hxg4+ {[%clk 0:00:42]} 33. hxg4 {[%clk 0:00:43]}  Bd7 {[%clk 0:00:36]} 34. Ng3 {[%clk 0:00:39]}  Be8 {[%clk 0:00:34]} 35. Nh5+ {[%clk 0:00:35]}  Nxh5 {[%clk 0:00:34]} 36. gxh5 {[%clk 0:00:36]}  b5 {[%clk 0:00:28]} 37. axb5 {[%clk 0:00:32]}  cxb5 {[%clk 0:00:28]} 38. Ne3 {[%clk 0:00:32]}  a4 {[%clk 0:00:26]} 39. b4 {[%clk 0:00:31]}  Nb7 {[%clk 0:00:24]} 40. Rb6 {[%clk 0:00:30]}  Ra8 {[%clk 0:00:21]} 41. Ng4 {[%clk 0:00:30]}  a3 {[%clk 0:00:15]} 42. h6+ {[%clk 0:00:30]}  Kg8 {[%clk 0:00:15]} 43. Nf6+ {[%clk 0:00:30]}  Kf8 {[%clk 0:00:14]} 44. g7+ {[%clk 0:00:29]} 1-0


[Site "https://www.chess.com"]

[Event "Titled Tuesday Blitz December 20 Late 2022"]
[White "Kleinman, Michael"]
[Black "Vlassov, Nikolai"]
[WhiteFideId "2609479"]
[BlackFideId "4103360"]
[WhiteElo "2287"]
[BlackElo "2324"]
[Result "1-0"]
[Round "05"]
[TimeControl "180+1"]
[Date "2022.12.21"]
[WhiteClock "0:00:13"]
[BlackClock "0:00:04"]

1. e4 {[%clk 0:02:40]}  c5 {[%clk 0:02:58]} 2. Nf3 {[%clk 0:02:40]}  d6 {[%clk 0:02:58]} 3. d4 {[%clk 0:02:40]}  cxd4 {[%clk 0:02:58]} 4. Qxd4 {[%clk 0:02:41]}  Nc6 {[%clk 0:02:56]} 5. Bb5 {[%clk 0:02:41]}  a6 {[%clk 0:02:57]} 6. Bxc6+ {[%clk 0:02:41]}  bxc6 {[%clk 0:02:57]} 7. O-O {[%clk 0:02:40]}  e5 {[%clk 0:02:57]} 8. Qd3 {[%clk 0:02:40]}  Ne7 {[%clk 0:02:57]} 9. c4 {[%clk 0:02:40]}  Ng6 {[%clk 0:02:56]} 10. Nc3 {[%clk 0:02:38]}  Be7 {[%clk 0:02:54]} 11. b3 {[%clk 0:02:38]}  O-O {[%clk 0:02:54]} 12. Rd1 {[%clk 0:02:38]}  Be6 {[%clk 0:02:53]} 13. Ba3 {[%clk 0:02:34]}  Qa5 {[%clk 0:02:16]} 14. Na4 {[%clk 0:02:29]}  Rad8 {[%clk 0:02:11]} 15. Qe3 {[%clk 0:02:12]}  f5 {[%clk 0:02:03]} 16. exf5 {[%clk 0:02:00]}  Rxf5 {[%clk 0:01:37]} 17. Nd4 {[%clk 0:01:17]}  Bg5 {[%clk 0:00:57]} 18. Qe4 {[%clk 0:01:05]}  Rf4 {[%clk 0:00:43]} 19. Qxc6 {[%clk 0:00:40]}  exd4 {[%clk 0:00:31]} 20. Bxd6 {[%clk 0:00:30]}  Rf7 {[%clk 0:00:22]} 21. Nc5 {[%clk 0:00:23]}  Bg4 {[%clk 0:00:18]} 22. Nb7 {[%clk 0:00:21]}  Qc3 {[%clk 0:00:09]} 23. Nxd8 {[%clk 0:00:16]}  Bxd1 {[%clk 0:00:09]} 24. Qe8+ {[%clk 0:00:13]}  Rf8 {[%clk 0:00:04]} 25. Bxf8 {[%clk 0:00:13]} 1-0


[Site "https://www.chess.com"]

[Event "Titled Tuesday Blitz December 20 Late 2022"]
[White "Kohler, Aran"]
[Black "Postnikov, Artem"]
[WhiteFideId "1002856"]
[BlackFideId "34153575"]
[WhiteElo "2338"]
[BlackElo "2243"]
[Result "1/2-1/2"]
[Round "05"]
[TimeControl "180+1"]
[Date "2022.12.21"]
[WhiteClock "0:00:33"]
[BlackClock "0:00:04"]

1. d4 {[%clk 0:02:58]}  Nf6 {[%clk 0:02:59]} 2. c4 {[%clk 0:02:58]}  e6 {[%clk 0:02:59]} 3. Nc3 {[%clk 0:02:57]}  Bb4 {[%clk 0:03:00]} 4. Bd2 {[%clk 0:02:57]}  O-O {[%clk 0:02:58]} 5. Nf3 {[%clk 0:02:57]}  d5 {[%clk 0:02:58]} 6. c5 {[%clk 0:02:55]}  b6 {[%clk 0:02:55]} 7. a3 {[%clk 0:02:52]}  Bxc3 {[%clk 0:02:55]} 8. Bxc3 {[%clk 0:02:51]}  Ne4 {[%clk 0:02:55]} 9. cxb6 {[%clk 0:02:45]}  axb6 {[%clk 0:02:54]} 10. Rc1 {[%clk 0:02:45]}  Ba6 {[%clk 0:02:52]} 11. e3 {[%clk 0:02:43]}  Bxf1 {[%clk 0:02:52]} 12. Kxf1 {[%clk 0:02:44]}  c5 {[%clk 0:02:51]} 13. g3 {[%clk 0:02:39]}  c4 {[%clk 0:02:39]} 14. Bb4 {[%clk 0:02:35]}  Re8 {[%clk 0:02:38]} 15. Kg2 {[%clk 0:02:36]}  Nc6 {[%clk 0:02:38]} 16. Be1 {[%clk 0:02:27]}  b5 {[%clk 0:02:26]} 17. Nd2 {[%clk 0:02:21]}  Nxd2 {[%clk 0:02:10]} 18. Bxd2 {[%clk 0:02:19]}  Qb6 {[%clk 0:02:11]} 19. Qe1 {[%clk 0:02:17]}  Reb8 {[%clk 0:02:07]} 20. Bb4 {[%clk 0:02:16]}  Nxb4 {[%clk 0:02:06]} 21. Qxb4 {[%clk 0:02:15]}  Ra4 {[%clk 0:02:06]} 22. Qe7 {[%clk 0:02:00]}  Qb7 {[%clk 0:01:13]} 23. Qxb7 {[%clk 0:01:49]}  Rxb7 {[%clk 0:01:14]} 24. Rc2 {[%clk 0:01:49]}  g5 {[%clk 0:01:08]} 25. h3 {[%clk 0:01:44]}  b4 {[%clk 0:01:07]} 26. axb4 {[%clk 0:01:43]}  Raxb4 {[%clk 0:01:08]} 27. Rb1 {[%clk 0:01:43]}  Rb3 {[%clk 0:01:08]} 28. Kf3 {[%clk 0:01:40]}  c3 {[%clk 0:01:04]} 29. Kg4 {[%clk 0:01:35]}  h6 {[%clk 0:01:00]} 30. Rbc1 {[%clk 0:01:13]}  cxb2 {[%clk 0:00:45]} 31. Rb1 {[%clk 0:01:12]}  Kg7 {[%clk 0:00:43]} 32. h4 {[%clk 0:01:10]}  Kg6 {[%clk 0:00:42]} 33. h5+ {[%clk 0:00:51]}  Kg7 {[%clk 0:00:42]} 34. Kf3 {[%clk 0:00:47]}  f5 {[%clk 0:00:36]} 35. Ke2 {[%clk 0:00:46]}  g4 {[%clk 0:00:35]} 36. Kd2 {[%clk 0:00:41]}  Kf6 {[%clk 0:00:34]} 37. Rc8 {[%clk 0:00:41]}  Kg5 {[%clk 0:00:30]} 38. Rg8+ {[%clk 0:00:41]}  Kf6 {[%clk 0:00:27]} 39. Rg6+ {[%clk 0:00:38]}  Ke7 {[%clk 0:00:18]} 40. Rxh6 {[%clk 0:00:38]}  Kd6 {[%clk 0:00:17]} 41. Rg6 {[%clk 0:00:36]}  Rh7 {[%clk 0:00:11]} 42. h6 {[%clk 0:00:36]}  Rb8 {[%clk 0:00:08]} 43. Kc2 {[%clk 0:00:34]}  Rc7+ {[%clk 0:00:07]} 44. Kd2 {[%clk 0:00:34]}  Rh7 {[%clk 0:00:07]} 45. Kc2 {[%clk 0:00:34]}  Rc7+ {[%clk 0:00:03]} 46. Kd2 {[%clk 0:00:33]}  Rh7 {[%clk 0:00:04]} 1/2-1/2


[Site "https://www.chess.com"]